bitfinex-derivatives/quotes_BTCF0:USTF0_20210404
["timestamp","ask_amount","ask_price","bid_price","bid_amount"]
[1617551844720,3.7483,57892.0,57890.0,0.035]
[1617551845623,1.0,57891.0,57890.0,0.035]
[1617551846426,2.7483,57892.0,57890.0,0.035]
[1617551846827,1.0,57891.0,57890.0,0.035]
[1617551847227,1.0,57891.0,57890.0,0.305]
[1617551848028,0.10725655,57895.0,57890.0,0.305]
[1617551848228,0.10725655,57895.0,57890.0,0.42475]
[1617551848628,0.10725655,57895.0,57892.0,0.10725655]
[1617551848826,0.10725655,57895.0,57892.0,0.00725655]
[1617551849028,0.10725655,57895.0,57893.0,0.27]
[1617551849629,1.0,57894.0,57893.0,0.27]
[1617551850230,1.0,57894.0,57891.0,0.27]
[1617551850629,1.0,57894.0,57893.0,0.27]
[1617551850829,1.0,57894.0,57891.0,0.27]
[1617551851231,1.0,57894.0,57893.0,0.27]
[1617551851430,0.10725655,57895.0,57891.0,0.27]
[1617551851632,1.0,57894.0,57891.0,0.27]
[1617551851835,1.0,57894.0,57890.0,0.035]
[1617551852030,1.0,57892.0,57891.0,0.27]
[1617551855338,0.10725655,57895.0,57891.0,0.27]
[1617551855736,1.0,57892.0,57891.0,0.27]
[1617551856538,1.0,57892.0,57891.0,1.77]
[1617551856739,0.10725655,57895.0,57891.0,1.77]
[1617551856740,0.10725655,57895.0,57891.0,1.87725655]
[1617551856939,0.10725655,57895.0,57891.0,2.00799655]
[1617551857138,0.10725655,57895.0,57891.0,2.20799655]
[1617551858839,0.10725655,57895.0,57891.0,2.00799655]
[1617551859439,0.10725655,57895.0,57891.0,0.50799655]
[1617551859840,0.10725655,57895.0,57891.0,0.37725655]
[1617551860640,0.10725655,57895.0,57891.0,0.27]
[1617551861241,1.0,57892.0,57891.0,0.27]
[1617551861641,0.10725655,57895.0,57891.0,0.27]
[1617551862641,1.0,57893.0,57891.0,0.27]
[1617551862844,0.10725655,57895.0,57892.0,1.5]
[1617551863244,0.10725655,57895.0,57893.0,0.27]
[1617551863443,0.10725655,57895.0,57894.0,1.5]
[1617551863843,0.10725655,57895.0,57894.0,0.01]
[1617551864445,0.10725655,57895.0,57894.0,0.15181]
[1617551864644,0.10725655,57895.0,57894.0,1.65181]
[1617551864846,0.10725655,57895.0,57894.0,1.92181]
[1617551865244,0.10725655,57895.0,57894.0,2.12181]
[1617551866743,0.10725655,57895.0,57894.0,0.42181]
[1617551868147,0.10725655,57895.0,57894.0,1.92181]
[1617551869345,0.10725655,57895.0,57894.0,0.42181]
[1617551869746,0.10725655,57895.0,57894.0,0.27]
[1617551870146,0.10725655,57895.0,57893.0,0.035]
[1617551870546,0.10725655,57895.0,57894.0,0.27]
[1617551871751,1.10725655,57895.0,57894.0,0.27]
[1617551872351,0.10725655,57895.0,57894.0,0.27]
[1617551873852,1.10725655,57895.0,57894.0,0.62899827]
[1617551874252,1.10725655,57895.0,57894.0,0.27]
[1617551874253,3.93155655,57895.0,57894.0,0.27]
[1617551875452,2.93155655,57895.0,57894.0,0.27]
[1617551875652,3.93155655,57895.0,57894.0,0.27]
[1617551876252,2.93155655,57895.0,57894.0,0.27]
[1617551876854,3.93155655,57895.0,57894.0,0.27]
[1617551877053,3.93155655,57895.0,57894.0,0.63050763]
[1617551877455,3.93155655,57895.0,57894.0,0.27]
[1617551877956,3.93367158,57895.0,57894.0,0.27]
[1617551878359,3.93155655,57895.0,57894.0,0.6314955]
[1617551878557,2.93155655,57895.0,57894.0,0.6314955]
[1617551879359,3.93155655,57895.0,57894.0,0.6314955]
[1617551879560,3.94172978,57895.0,57894.0,0.27]
[1617551880161,4.23383539,57895.0,57893.0,0.035]
[1617551880360,3.23383539,57895.0,57893.0,0.035]
[1617551880560,0.66502315,57894.0,57893.0,0.035]
[1617551881761,1.66502315,57894.0,57893.0,0.035]
[1617551882961,1.30229241,57894.0,57893.0,0.035]
[1617551884164,0.66502188,57894.0,57893.0,0.035]
[1617551884363,1.66502188,57894.0,57893.0,0.035]
[1617551885765,0.30229241,57894.0,57893.0,0.035]
[1617551886165,1.30229241,57894.0,57893.0,0.035]
[1617551886565,1.0101691,57894.0,57893.0,0.035]
[1617551886964,1.0101691,57894.0,57893.0,0.305]
[1617551887166,1.30228073,57894.0,57893.0,0.305]
[1617551887564,1.01017138,57894.0,57893.0,0.305]
[1617551888766,1.3022229,57894.0,57893.0,0.305]
[1617551890777,2.11026595,57894.0,57893.0,0.305]
[1617551892469,1.11026595,57894.0,57893.0,0.305]
[1617551892670,1.66585237,57894.0,57893.0,0.305]
[1617551893070,2.10939013,57894.0,57893.0,0.305]
[1617551893871,7.10939013,57894.0,57893.0,0.305]
[1617551894070,7.10939013,57894.0,57893.0,0.035]
[1617551894270,8.60939013,57894.0,57893.0,0.035]
[1617551894470,9.11464277,57894.0,57893.0,0.035]
[1617551894669,12.75934277,57894.0,57893.0,0.0059]
[1617551894870,12.95934277,57894.0,57893.0,0.0059]
[1617551895471,7.52526681,57894.0,57893.0,0.0059]
[1617551896069,13.52526681,57894.0,57893.0,0.0059]
[1617551896270,13.52526681,57894.0,57893.0,0.00488584]
[1617551896472,13.52526681,57894.0,57872.0,0.36377882]
[1617551896973,0.77354595,57873.0,57868.0,0.44461869]
[1617551897173,0.90673595,57873.0,57868.0,0.44461869]
[1617551897371,0.30289532,57869.0,57868.0,0.27]
[1617551897672,1.30289532,57869.0,57862.0,0.23314835]
[1617551897872,1.5,57868.0,57866.0,0.44464048]
[1617551898072,3.0634,57867.0,57846.0,0.09127923]
[1617551898272,3.0634,57867.0,57858.0,0.36386423]
[1617551898273,1.10632137,57863.0,57858.0,0.36386423]
[1617551898673,1.10632137,57863.0,57858.0,0.34956423]
[1617551898873,0.3008206,57847.0,57839.0,0.44474582]
[1617551899075,0.10725655,57840.0,57839.0,0.44474582]
[1617551899273,0.10725655,57840.0,57832.0,1.5]
[1617551899475,0.10725655,57840.0,57839.0,0.27]
[1617551899673,0.11237056,57840.0,57839.0,0.7147284]
[1617551899873,0.11237056,57840.0,57839.0,0.4447284]
[1617551900073,0.11237056,57840.0,57839.0,0.7147284]
[1617551900276,0.10725655,57840.0,57839.0,0.7147284]
[1617551900475,0.10725655,57840.0,57839.0,0.4447284]
[1617551900676,0.10725655,57840.0,57839.0,0.8404484]
[1617551901476,0.10725655,57840.0,57839.0,1.0404484]
[1617551901677,0.10725655,57840.0,57839.0,1.5032484]
[1617551902475,0.10725655,57840.0,57839.0,3.0032484]
[1617551902876,0.00210138,57845.0,57841.0,2.9791]
[1617551903076,0.00210138,57845.0,57844.0,0.10725655]
[1617551903277,0.00210166,57848.0,57844.0,2.25199576]
[1617551903477,0.00210166,57848.0,57844.0,2.26199576]
[1617551903677,0.10725655,57850.0,57844.0,1.81725655]
[1617551904279,0.10725655,57850.0,57844.0,1.61725655]
[1617551904478,0.10725655,57850.0,57844.0,1.51]
[1617551904678,1.10725655,57850.0,57844.0,1.51]
[1617551904878,1.10725655,57850.0,57844.0,0.01]
[1617551905078,1.0,57848.0,57844.0,0.01]
[1617551905277,1.0,57848.0,57842.0,0.27]
[1617551905677,1.0,57848.0,57845.0,0.01]
[1617551905877,1.0,57848.0,57843.0,0.27]
[1617551906278,1.0,57849.0,57846.0,0.01]
[1617551906479,1.0,57849.0,57846.0,0.13278]
[1617551906679,0.10934712,57850.0,57846.0,0.13278]
[1617551906680,0.10725655,57850.0,57846.0,0.13278]
[1617551907079,0.10725655,57850.0,57847.0,0.26]
[1617551911685,0.10725655,57850.0,57847.0,0.4159]
[1617551911886,0.10725655,57850.0,57847.0,0.1559]
[1617551912087,0.10725655,57850.0,57848.0,0.27]
[1617551913386,0.10725655,57850.0,57843.0,0.27]
[1617551913586,0.10725655,57850.0,57843.0,1.77]
[1617551913785,0.10725655,57850.0,57849.0,0.42226]
[1617551913987,0.10725655,57850.0,57849.0,0.15226]
[1617551914388,0.10725655,57850.0,57849.0,1.92226]
[1617551914590,0.10725655,57850.0,57849.0,2.12226]
[1617551914788,0.10725655,57850.0,57849.0,1.92226]
[1617551914988,0.10725655,57850.0,57849.0,2.12226]
[1617551915189,0.10725655,57850.0,57849.0,2.22951655]
[1617551915388,0.10725655,57850.0,57849.0,2.02951655]
[1617551915998,0.10725655,57850.0,57849.0,2.72951655]
[1617551916789,3.3893,57851.0,57849.0,2.72951655]
[1617551917389,3.3893,57851.0,57849.0,2.22951655]
[1617551917591,3.3893,57851.0,57850.0,0.481]
[1617551917990,3.3893,57851.0,57850.0,2.5995]
[1617551918192,3.3893,57851.0,57850.0,2.3995]
[1617551918591,3.3893,57851.0,57850.0,2.5995]
[1617551918990,3.3893,57851.0,57850.0,2.3995]
[1617551919592,0.10725655,57857.0,57850.0,2.8995]
[1617551921092,0.23073382,57871.0,57856.0,0.10725655]
[1617551921292,0.10725655,57877.0,57863.0,2.618]
[1617551921492,0.10725655,57877.0,57866.0,1.0]
[1617551921691,0.10725655,57877.0,57868.0,1.5]
[1617551921893,0.10725655,57877.0,57870.0,1.5]
[1617551922093,0.10725655,57877.0,57871.0,0.5]
[1617551922297,0.10725655,57877.0,57872.0,1.5]
[1617551922493,0.10725655,57877.0,57873.0,0.5]
[1617551922694,0.10725655,57877.0,57874.0,1.5]
[1617551923094,0.10725655,57877.0,57876.0,0.10725655]
[1617551923294,0.10725655,57877.0,57876.0,0.21176655]
[1617551923493,0.10725655,57877.0,57876.0,0.48176655]
[1617551924293,3.80445655,57877.0,57876.0,0.48176655]
[1617551924494,3.80445655,57877.0,57876.0,0.37725655]
[1617551925497,3.80445655,57877.0,57876.0,0.27]
[1617551925899,3.80445655,57877.0,57868.0,0.27]
[1617551926099,3.80445655,57877.0,57869.0,1.5]
[1617551926299,3.80445655,57877.0,57876.0,0.27]
[1617551926499,3.80445655,57877.0,57874.0,1.5]
[1617551926698,3.80445655,57877.0,57876.0,1.5]
[1617551926899,3.80445655,57877.0,57876.0,1.76]
[1617551927102,0.10725655,57877.0,57876.0,1.5]
[1617551927299,0.10725655,57877.0,57876.0,1.60725655]
[1617551927500,0.10725655,57877.0,57876.0,1.87725655]
[1617551930702,0.10725655,57877.0,57876.0,2.07725655]
[1617551932706,0.10725655,57877.0,57876.0,1.87725655]
[1617551932904,0.10725655,57877.0,57876.0,0.37725655]
[1617551934506,0.10725655,57877.0,57876.0,0.27]
[1617551934705,1.10725655,57877.0,57876.0,0.27]
[1617551934906,1.10725655,57877.0,57875.0,0.27]
[1617551935307,1.10725655,57877.0,57876.0,0.27]
[1617551935506,0.10725655,57877.0,57875.0,0.27]
[1617551935906,0.10725655,57877.0,57876.0,0.27]
[1617551936106,1.0,57876.0,57875.0,0.27]
[1617551936507,1.10725655,57877.0,57876.0,0.27]
[1617551936706,0.05725655,57877.0,57875.0,0.27]
[1617551937107,0.05725655,57877.0,57876.0,0.27]
[1617551937307,0.05725655,57877.0,57875.0,0.27]
[1617551937708,0.05725655,57877.0,57874.0,0.4868]
[1617551937709,0.05725655,57877.0,57876.0,0.27]
[1617551937909,0.05725655,57877.0,57875.0,0.27]
[1617551938348,0.19284655,57877.0,57876.0,0.27]
[1617551938533,0.19284655,57877.0,57875.0,0.27]
[1617551938735,1.36064413,57876.0,57875.0,0.27]
[1617551938939,1.36064413,57876.0,57874.0,0.4868]
[1617551939122,1.8010517,57876.0,57874.0,0.4868]
[1617551939310,1.8010517,57876.0,57875.0,0.27]
[1617551939508,0.50003869,57876.0,57875.0,0.27]
[1617551939715,0.86517748,57876.0,57874.0,0.4868]
[1617551939939,4.16488687,57876.0,57874.0,0.4868]
[1617551940110,9.16488687,57876.0,57874.0,0.4868]
[1617551940310,8.23073942,57875.0,57874.0,0.4868]
[1617551940513,9.93073942,57875.0,57874.0,0.4868]
[1617551940912,9.93073942,57875.0,57874.0,0.48578561]
[1617551941113,8.43073942,57875.0,57874.0,0.48578561]
[1617551941313,3.43073942,57875.0,57874.0,0.48578561]
[1617551941514,4.93073942,57875.0,57874.0,0.48578561]
[1617551941714,9.93073942,57875.0,57874.0,0.48578561]
[1617551942516,10.48911225,57875.0,57874.0,0.48578561]
[1617551942714,8.98911225,57875.0,57874.0,0.48578561]
[1617551942914,2.78911225,57875.0,57874.0,0.48578561]
[1617551943117,4.28911225,57875.0,57874.0,0.48578561]
[1617551943315,7.85588331,57875.0,57874.0,0.48578561]
[1617551943526,2.05588331,57875.0,57874.0,0.48578561]
[1617551943716,2.43075411,57875.0,57874.0,0.48578561]
[1617551943916,3.93075411,57875.0,57874.0,0.48578561]
[1617551944117,3.55598652,57875.0,57874.0,0.48578561]
[1617551944718,3.92118237,57875.0,57874.0,0.48578561]
[1617551945117,3.55598652,57875.0,57874.0,0.48578561]
[1617551945517,3.92118542,57875.0,57874.0,0.48578561]
[1617551945920,3.55598652,57875.0,57874.0,0.48578561]
[1617551946118,3.55598652,57875.0,57867.0,0.4964]
[1617551946519,3.3634,57868.0,57867.0,0.4964]
[1617551946719,5.1148,57868.0,57867.0,0.4356]
[1617551946922,6.96193194,57868.0,57867.0,0.4356]
[1617551947324,7.06918849,57868.0,57867.0,0.4356]
[1617551947522,8.00270496,57868.0,57867.0,0.3872]
[1617551947722,8.00270496,57868.0,57867.0,0.3316]
[1617551947922,8.00270496,57868.0,57867.0,0.2264]
[1617551948522,8.00270496,57868.0,57828.0,0.36275489]
[1617551948924,0.51177971,57842.0,57829.0,0.27]
[1617551949323,0.10725655,57830.0,57829.0,0.27]
[1617551949522,0.24441655,57830.0,57829.0,0.27]
[1617551951123,0.10725655,57830.0,57829.0,0.27]
[1617551952124,0.10725655,57830.0,57829.0,0.36274424]
[1617551952728,0.10725655,57830.0,57829.0,0.63274424]
[1617551953328,0.10725655,57830.0,57829.0,0.74000079]
[1617551954134,0.10725655,57830.0,57829.0,1.18364418]
[1617551954742,0.10725655,57830.0,57829.0,1.33723418]
[1617551955328,0.29752075,57843.0,57829.0,1.33723418]
[1617551955528,0.29752075,57843.0,57829.0,1.53723418]
[1617551955928,0.29757029,57847.0,57839.0,0.36294331]
[1617551956329,0.29771296,57848.0,57840.0,1.77]
[1617551956930,0.29763914,57854.0,57844.0,1.5]
[1617551957331,0.43649112,57862.0,57851.0,0.36264857]
[1617551957332,0.29797457,57862.0,57851.0,0.36264857]
[1617551957530,0.10725655,57860.0,57853.0,0.10725655]
[1617551957731,0.10725655,57860.0,57854.0,0.36264251]
[1617551957932,0.10725655,57860.0,57854.0,0.37264251]
[1617551958331,3.5211,57855.0,57847.0,0.36271183]
[1617551958734,0.43531937,57853.0,57850.0,0.27]
[1617551959130,0.43531937,57853.0,57835.0,0.36276972]
[1617551959332,0.10725655,57836.0,57833.0,0.36277098]
[1617551959933,0.10725655,57836.0,57834.0,0.27]
[1617551960331,3.4619,57835.0,57834.0,0.27]
[1617551961134,3.4619,57835.0,57829.0,0.27]
[1617551961333,3.4619,57835.0,57826.0,0.37279699]
[1617551961334,3.4619,57835.0,57826.0,0.36279699]
[1617551961533,0.10725655,57830.0,57827.0,0.27]
[1617551961732,0.10725655,57830.0,57826.0,0.36279699]
[1617551962132,0.10725655,57830.0,57827.0,0.27]
[1617551962534,0.10725655,57830.0,57827.0,0.63281234]
[1617551962933,0.10725655,57830.0,57827.0,0.36281234]
[1617551963335,0.10725655,57830.0,57828.0,0.27]
[1617551964337,0.10725655,57830.0,57827.0,0.63249111]
[1617551964742,0.10725655,57830.0,57829.0,0.27]
[1617551964954,0.10725655,57830.0,57828.0,0.27]
[1617551965146,0.10725655,57830.0,57828.0,0.63248282]
[1617551965337,0.10725655,57830.0,57829.0,0.27]
[1617551965544,0.10725655,57830.0,57828.0,0.36248282]
[1617551965746,0.10725655,57830.0,57829.0,0.36248732]
[1617551965941,0.10725655,57830.0,57829.0,0.63248732]
[1617551966139,0.10725655,57830.0,57829.0,0.27]
[1617551966541,0.10725655,57830.0,57828.0,0.01]
[1617551966938,0.10725655,57830.0,57829.0,0.27]
[1617551967138,0.10725655,57830.0,57827.0,0.27]
[1617551967538,0.10725655,57830.0,57829.0,0.27]
[1617551967740,0.10725655,57830.0,57827.0,0.27]
[1617551968140,0.10725655,57830.0,57829.0,0.27]
[1617551968339,0.10725655,57830.0,57828.0,0.27]
[1617551968740,0.29556153,57846.0,57829.0,1.97]
[1617551968941,0.29577931,57852.0,57829.0,2.0618222]
[1617551969340,0.29577931,57852.0,57830.0,0.27]
[1617551969541,0.29586692,57854.0,57833.0,0.36181779]
[1617551969740,0.29586692,57854.0,57833.0,0.49004779]
[1617551969943,0.29586692,57854.0,57834.0,0.27]
[1617551970445,0.29586692,57854.0,57834.0,0.53087207]
[1617551970746,0.29586692,57854.0,57834.0,0.47]
[1617551970944,0.29586692,57854.0,57835.0,0.4688]
[1617551971145,0.2962197,57853.0,57835.0,0.4688]
[1617551971344,0.2962197,57853.0,57836.0,0.27]
[1617551971544,0.2962197,57853.0,57840.0,0.10725655]
[1617551971747,0.29643951,57852.0,57840.0,0.10725655]
[1617551971945,0.29643951,57852.0,57841.0,0.27]
[1617551973247,0.29678101,57853.0,57841.0,0.27]
[1617551973448,0.79739232,57875.0,57841.0,0.27]
[1617551973449,0.10725655,57842.0,57841.0,0.27]
[1617551975955,0.10725655,57842.0,57841.0,0.47]
[1617551976152,0.10725655,57842.0,57841.0,1.97]
[1617551978154,0.29651602,57863.0,57841.0,2.47]
[1617551978756,0.29712838,57864.0,57841.0,2.83175072]
[1617551978955,0.29712838,57864.0,57842.0,0.4989]
[1617551979155,0.35653425,57867.0,57842.0,0.4989]
[1617551979156,0.29737722,57867.0,57847.0,0.36174423]
[1617551979356,0.29737722,57867.0,57847.0,0.51626423]
[1617551979554,0.29751822,57868.0,57860.0,0.10725655]
[1617551979955,0.29744358,57865.0,57861.0,0.27]
[1617551981154,0.29744358,57865.0,57861.0,0.47]
[1617551981355,0.29742922,57867.0,57861.0,0.47]
[1617551981554,0.29742922,57867.0,57866.0,0.10725655]
[1617551981958,0.29742922,57867.0,57866.0,0.37725655]
[1617551982757,0.29712701,57868.0,57866.0,0.37725655]
[1617551983356,0.55455127,57890.0,57866.0,0.37725655]
[1617551983357,0.29708998,57869.0,57866.0,0.37725655]
[1617551983563,0.40434653,57869.0,57866.0,0.37725655]
[1617551983758,0.10725655,57869.0,57866.0,0.37725655]
[1617551983957,0.10725655,57869.0,57867.0,0.2]
[1617551984359,0.10725655,57869.0,57868.0,0.47]
[1617551984560,0.10725655,57869.0,57868.0,0.27]
[1617551984758,0.10725655,57869.0,57867.0,0.27]
[1617551985157,0.10725655,57869.0,57868.0,0.27]
[1617551985357,0.10725655,57869.0,57866.0,0.10725655]
[1617551985358,0.10725655,57869.0,57867.0,0.27]
[1617551985558,0.29685391,57872.0,57868.0,0.2]
[1617551985757,0.46390046,57875.0,57868.0,1.97]
[1617551985957,0.35664391,57875.0,57868.0,1.7]
[1617551986159,0.35701188,57882.0,57868.0,1.7]
[1617551986358,0.35701188,57882.0,57870.0,1.7]
[1617551986559,0.35724478,57885.0,57870.0,1.7]
[1617551986758,0.35724478,57885.0,57871.0,0.01]
[1617551986959,0.3573468,57888.0,57871.0,0.61293]
[1617551987161,0.3573468,57888.0,57872.0,1.7]
[1617551987360,0.55581768,57907.0,57872.0,1.7]
[1617551987361,0.35762123,57893.0,57873.0,0.36191013]
[1617551987559,0.35762123,57893.0,57892.0,0.10725655]
[1617551987760,0.35762123,57893.0,57892.0,0.23138655]
[1617551987960,0.3577803,57895.0,57892.0,0.50138655]
[1617551988361,0.35768635,57894.0,57892.0,0.50138655]
[1617551988763,0.35774693,57897.0,57892.0,0.50138655]
[1617551988961,0.35774693,57897.0,57893.0,1.5]
[1617551989162,0.35802516,57900.0,57894.0,0.2]
[1617551989361,0.35802516,57900.0,57895.0,1.5]
[1617551989562,0.35802516,57900.0,57899.0,0.10725655]
[1617551989764,0.35706148,57909.0,57899.0,0.30725655]
[1617551989962,0.35706148,57909.0,57899.0,0.31725655]
[1617551990162,0.69419257,57937.0,57899.0,0.31725655]
[1617551990163,0.35721862,57911.0,57899.0,0.31725655]
[1617551990564,0.35739238,57913.0,57899.0,1.81725655]
[1617551990965,0.35768203,57917.0,57899.0,1.81725655]
[1617551991564,0.10725655,57900.0,57899.0,1.81725655]
[1617551991765,0.10725655,57900.0,57899.0,1.61725655]
[1617551992165,0.35760676,57916.0,57899.0,1.61725655]
[1617551992369,0.35771244,57917.0,57899.0,1.61725655]
[1617551992765,0.35771244,57917.0,57899.0,0.11725655]
[1617551992966,0.35787429,57919.0,57899.0,0.11725655]
[1617551993367,0.75663812,57938.0,57899.0,0.11725655]
[1617551993368,0.35745711,57915.0,57899.0,0.11725655]
[1617551993568,0.10725655,57900.0,57899.0,0.11725655]
[1617551994369,0.35719149,57913.0,57899.0,1.72712655]
[1617551994571,0.35719149,57913.0,57901.0,1.5]
[1617551994770,0.1281,57956.0,57901.0,1.5]
[1617551994771,0.35739486,57917.0,57902.0,0.2]
[1617551994972,0.35739486,57917.0,57903.0,1.5]
[1617551995171,0.43679389,57922.0,57903.0,1.5]
[1617551995172,0.3577146,57922.0,57904.0,0.2]
[1617551995371,0.3577146,57922.0,57905.0,1.5]
[1617551995571,0.3577146,57922.0,57921.0,0.10725655]
[1617551995772,0.3577146,57922.0,57921.0,0.24929655]
[1617551995971,0.3577146,57922.0,57921.0,0.25929655]
[1617551996172,0.35772544,57924.0,57921.0,0.25929655]
[1617551996572,0.35779507,57925.0,57921.0,0.25929655]
[1617551996971,0.35779507,57925.0,57921.0,0.11725655]
[1617551997173,0.35777719,57924.0,57921.0,0.11725655]
[1617551997672,0.10725655,57922.0,57921.0,0.11725655]
[1617551997871,0.10725655,57922.0,57921.0,0.01]
[1617551998073,0.46451676,57922.0,57921.0,0.01]
[1617551998272,0.46451676,57922.0,57902.0,0.27]
[1617551998474,1.14396764,57922.0,57902.0,0.27]
[1617551998672,1.14396764,57922.0,57901.0,0.9458]
[1617551998873,0.35673193,57911.0,57902.0,0.27]
[1617551999674,0.73870787,57921.0,57902.0,0.27]
[1617551999675,0.10725655,57909.0,57903.0,0.10725655]
[1617551999875,0.10725655,57909.0,57903.0,0.23204655]
[1617552000075,0.10725655,57909.0,57904.0,0.27]
[1617552003478,0.10725655,57909.0,57905.0,1.5]
[1617552003677,0.36491722,57933.0,57905.0,1.5]
[1617552003678,0.10725655,57920.0,57908.0,0.10725655]
[1617552003877,0.10725655,57920.0,57909.0,1.7]
[1617552004079,0.10725655,57920.0,57909.0,1.71]
[1617552004677,0.10725655,57920.0,57909.0,2.21]
[1617552005279,0.10725655,57920.0,57909.0,1.51]
[1617552005679,0.10725655,57920.0,57919.0,0.10725655]
[1617552005877,0.10725655,57920.0,57919.0,0.26373655]
[1617552006077,0.10725655,57920.0,57919.0,0.53373655]
[1617552006878,0.10725655,57920.0,57919.0,0.73373655]
[1617552007079,0.10725655,57920.0,57919.0,2.23373655]
[1617552010082,0.35644266,57947.0,57919.0,2.23373655]
[1617552010282,0.3564702,57946.0,57919.0,0.53373655]
[1617552010517,0.3564702,57946.0,57920.0,0.4622]
[1617552010694,0.35665967,57948.0,57920.0,0.4622]
[1617552010882,0.35665967,57948.0,57921.0,0.27]
[1617552011091,0.35605868,57938.0,57921.0,0.27]
[1617552011307,0.0525,57937.0,57920.0,0.4622]
[1617552011500,0.0525,57937.0,57897.0,0.4686]
[1617552011693,0.35565852,57931.0,57899.0,0.10725655]
[1617552011892,0.051,57930.0,57897.0,0.4686]
[1617552012086,0.35522542,57924.0,57897.0,0.4686]
[1617552012283,0.35522542,57924.0,57900.0,0.27]
[1617552012484,0.35500128,57919.0,57898.0,0.27]
[1617552012683,0.51737128,57919.0,57886.0,0.4877]
[1617552012883,0.35459974,57912.0,57859.0,0.35869566]
[1617552013086,0.0518,57911.0,57859.0,0.25469566]
[1617552013484,0.0518,57911.0,57854.0,0.4384058]
[1617552013687,0.10725655,57855.0,57853.0,0.10725655]
[1617552013886,0.10725655,57855.0,57848.0,0.4538]
[1617552014085,0.27139655,57855.0,57848.0,0.4538]
[1617552014485,0.27139655,57855.0,57833.0,0.472]
[1617552014887,1.5514,57854.0,57833.0,0.472]
[1617552015086,1.7514,57854.0,57833.0,0.472]
[1617552015690,0.10725655,57834.0,57833.0,0.472]
[1617552015889,0.23897655,57834.0,57833.0,0.472]
[1617552016489,0.43897655,57834.0,57833.0,0.472]
[1617552016689,0.23897655,57834.0,57833.0,0.472]
[1617552017699,0.10725655,57834.0,57833.0,0.472]
[1617552017897,0.29258396,57853.0,57833.0,0.472]
[1617552018112,0.29258396,57853.0,57833.0,2.12126]
[1617552018310,0.29258396,57853.0,57833.0,2.39126]
[1617552018494,0.29279294,57858.0,57833.0,2.39126]
[1617552018899,0.68305343,57889.0,57833.0,2.39126]
[1617552018900,0.29330144,57869.0,57833.0,2.39126]
[1617552019115,0.11581947,57869.0,57833.0,2.39126]
[1617552019306,0.4304426,57884.0,57833.0,2.39126]
[1617552019691,0.4304426,57884.0,57860.0,0.10725655]
[1617552019892,0.4304426,57884.0,57860.0,0.21603655]
[1617552020093,0.63122647,57888.0,57861.0,0.27]
[1617552020692,0.43122647,57888.0,57861.0,0.27]
[1617552020894,0.24346317,57887.0,57861.0,0.27]
[1617552021692,0.10725655,57862.0,57861.0,0.27]
[1617552022493,0.4316306,57890.0,57861.0,0.27]
[1617552022695,0.4316306,57890.0,57862.0,1.5]
[1617552023102,0.4316306,57890.0,57863.0,0.27]
[1617552023296,0.43196302,57894.0,57863.0,0.27]
[1617552023696,0.10725655,57864.0,57861.0,0.27]
[1617552024096,0.10725655,57864.0,57860.0,1.60878]
[1617552024297,0.10725655,57864.0,57862.0,0.27]
[1617552024497,0.10725655,57864.0,57862.0,1.77]
[1617552024698,0.10725655,57864.0,57862.0,1.5]
[1617552024898,0.10725655,57864.0,57863.0,0.27]
[1617552025298,0.10725655,57864.0,57860.0,0.10878]
[1617552025299,0.10725655,57864.0,57861.0,0.27]
[1617552025699,0.10725655,57864.0,57863.0,0.27]
[1617552025900,0.10725655,57864.0,57861.0,0.27]
[1617552026300,0.10725655,57864.0,57863.0,0.27]
[1617552026499,0.10725655,57864.0,57862.0,0.27]
[1617552026902,0.10725655,57864.0,57863.0,0.27]
[1617552027099,0.10725655,57864.0,57858.0,0.26]
[1617552027501,0.10725655,57864.0,57857.0,0.4499]
[1617552027903,0.11953,57872.0,57857.0,0.4499]
[1617552027904,0.10725655,57858.0,57857.0,0.4499]
[1617552028103,0.25794655,57858.0,57857.0,0.4499]
[1617552028303,0.45794655,57858.0,57857.0,0.4499]
[1617552028504,1.95794655,57858.0,57857.0,0.4499]
[1617552028905,1.95794655,57858.0,57857.0,0.44888509]
[1617552029104,1.95794655,57858.0,57799.0,0.63997827]
[1617552029105,2.75327482,57858.0,57799.0,0.63997827]
[1617552029304,2.75327482,57858.0,57834.0,0.3898]
[1617552029504,2.92786183,57858.0,57834.0,0.3898]
[1617552029905,0.10725655,57835.0,57834.0,0.341]
[1617552030106,0.10725655,57835.0,57834.0,0.3339]
[1617552030107,1.75490655,57835.0,57834.0,0.3339]
[1617552030305,1.95490655,57835.0,57834.0,0.3339]
[1617552030505,1.95490655,57835.0,57792.0,0.44007631]
[1617552030706,0.1330593,57819.0,57778.0,0.44013314]
[1617552030906,1.5,57818.0,57778.0,0.44013314]
[1617552031309,0.4307393,57819.0,57790.0,0.27]
[1617552031310,1.9307393,57819.0,57790.0,0.27]
[1617552031506,0.2,57817.0,57790.0,0.27]
[1617552031906,0.10725655,57791.0,57772.0,0.10725655]
[1617552032135,0.22557655,57791.0,57749.0,1.5]
[1617552032707,0.22557655,57791.0,57736.0,0.43650436]
[1617552033133,0.3180593,57790.0,57789.0,0.0646]
[1617552033334,0.3180593,57790.0,57789.0,0.0137]
[1617552033506,0.5180593,57790.0,57732.0,0.43655569]
[1617552033709,0.3180593,57790.0,57723.0,0.43656271]
[1617552033911,0.3180593,57790.0,57754.0,0.10725655]
[1617552034309,0.3180593,57790.0,57755.0,0.01]
[1617552034511,1.5522,57789.0,57755.0,0.01]
[1617552034710,0.2662593,57762.0,57715.0,0.43663462]
[1617552034938,0.4118593,57762.0,57715.0,0.43663462]
[1617552035111,0.4118593,57762.0,57663.0,1.34135684]
[1617552035112,0.4118593,57762.0,57716.0,0.2]
[1617552035312,1.5,57761.0,57695.0,0.43672981]
[1617552035513,1.5,57761.0,57622.0,0.5]
[1617552035515,1.5,57761.0,57716.0,0.27]
[1617552035712,1.5,57761.0,57710.0,0.27]
[1617552035912,1.5,57761.0,57747.0,0.10725655]
[1617552035913,1.5522,57761.0,57747.0,0.10725655]